[Event "Early-Titled-Tuesday-Blitz-September-26-2023"]
[Site "Chess.com"]
[Date "2023.09.26"]
[Round "5"]
[White "Zhani-Z"]
[Black "Smile2005"]
[Result "0-1"]
[WhiteElo "2211"]
[BlackElo "2418"]
[TimeControl "180+1"]
[EndTime "8:56:29 PDT"]
[Termination "Smile2005 won on time"]

1. e4 {[%clk 0:03:00.6]} 1... c5 {[%clk 0:02:59.4]} 2. Nf3 {[%clk 0:02:59.8]}
2... e6 {[%clk 0:02:59.6]} 3. c3 {[%clk 0:02:59.7]} 3... a6 {[%clk 0:02:59.2]}
4. d4 {[%clk 0:02:59.4]} 4... cxd4 {[%clk 0:02:59.4]} 5. cxd4 {[%clk 0:03:00.3]}
5... d5 {[%clk 0:02:59.6]} 6. Nc3 {[%clk 0:02:58.8]} 6... dxe4 {[%clk 0:02:59]}
7. Nxe4 {[%clk 0:02:58.6]} 7... Nc6 {[%clk 0:02:59.1]} 8. Be3 {[%clk 0:02:57.3]}
8... Bb4+ {[%clk 0:02:58]} 9. Nc3 {[%clk 0:02:56.7]} 9... Nf6 {[%clk 0:02:57.6]}
10. Bd3 {[%clk 0:02:54.2]} 10... Nd5 {[%clk 0:02:55.4]} 11. Bd2 {[%clk
0:02:49.5]} 11... O-O {[%clk 0:02:49.8]} 12. O-O {[%clk 0:01:52.1]} 12... h6
{[%clk 0:02:48.8]} 13. Re1 {[%clk 0:01:46.1]} 13... Be7 {[%clk 0:02:43.4]} 14.
Qc1 {[%clk 0:01:29.7]} 14... Bf6 {[%clk 0:02:42.4]} 15. Bxh6 {[%clk 0:01:12.1]}
15... Nxd4 {[%clk 0:02:41.7]} 16. Nxd4 {[%clk 0:01:05.8]} 16... Bxd4 {[%clk
0:02:41.1]} 17. Re4 {[%clk 0:00:59.3]} 17... Bxf2+ {[%clk 0:02:23]} 18. Kh1
{[%clk 0:00:42.9]} 18... f5 {[%clk 0:02:20.8]} 19. Re2 {[%clk 0:00:23.2]} 19...
Nxc3 {[%clk 0:02:15.8]} 20. Qxc3 {[%clk 0:00:19.8]} 20... Bd4 {[%clk 0:02:12.8]}
21. Qd2 {[%clk 0:00:11]} 21... gxh6 {[%clk 0:02:12.1]} 22. Rf1 {[%clk
0:00:08.5]} 22... Bg7 {[%clk 0:02:08.5]} 23. Rf3 {[%clk 0:00:05.7]} 23... Qg5
{[%clk 0:02:08]} 24. Qc2 {[%clk 0:00:04.1]} 24... b5 {[%clk 0:02:04.1]} 25. Rg3
{[%clk 0:00:04.3]} 25... Qf6 {[%clk 0:02:04]} 26. Qc6 {[%clk 0:00:02.7]} 26...
Ra7 {[%clk 0:02:01.9]} 27. Qc5 {[%clk 0:00:01.6]} 27... Rd7 {[%clk 0:02:00.8]}
28. Bc2 {[%clk 0:00:01.1]} 28... Bb7 {[%clk 0:02:00.5]} 29. Bb3 {[%clk
0:00:00.8]} 29... Bd5 {[%clk 0:01:59.1]} 0-1

[Event "Early-Titled-Tuesday-Blitz-September-26-2023"]
[Site "Chess.com"]
[Date "2023.09.26"]
[Round "5"]
[White "Zavgorodniy_Sergiy"]
[Black "ajedrezhoy"]
[Result "1-0"]
[WhiteElo "2588"]
[BlackElo "2390"]
[TimeControl "180+1"]
[EndTime "8:56:36 PDT"]
[Termination "Zavgorodniy_Sergiy won by resignation"]

1. e4 {[%clk 0:02:55.8]} 1... Nf6 {[%clk 0:02:59.4]} 2. d3 {[%clk 0:02:55.3]}
2... e5 {[%clk 0:02:59.1]} 3. Nf3 {[%clk 0:02:54]} 3... Nc6 {[%clk 0:02:58.9]}
4. Be2 {[%clk 0:02:53.7]} 4... d5 {[%clk 0:02:59]} 5. exd5 {[%clk 0:02:54.6]}
5... Qxd5 {[%clk 0:02:57.1]} 6. Nc3 {[%clk 0:02:53]} 6... Bb4 {[%clk 0:02:56.7]}
7. Bd2 {[%clk 0:02:53]} 7... Bxc3 {[%clk 0:02:56.7]} 8. Bxc3 {[%clk 0:02:52.9]}
8... Bg4 {[%clk 0:02:56.3]} 9. O-O {[%clk 0:02:48.6]} 9... O-O-O {[%clk
0:02:55.9]} 10. Nd2 {[%clk 0:02:45.7]} 10... Bxe2 {[%clk 0:02:54.6]} 11. Qxe2
{[%clk 0:02:45.8]} 11... Rhe8 {[%clk 0:02:53.9]} 12. Ne4 {[%clk 0:02:31.9]}
12... Nxe4 {[%clk 0:02:49.2]} 13. dxe4 {[%clk 0:02:30.4]} 13... Qe6 {[%clk
0:02:49.1]} 14. Rfd1 {[%clk 0:01:53.8]} 14... Kb8 {[%clk 0:02:41.1]} 15. h3
{[%clk 0:01:50]} 15... f6 {[%clk 0:02:39.8]} 16. a4 {[%clk 0:01:47.4]} 16...
Rxd1+ {[%clk 0:02:37.6]} 17. Rxd1 {[%clk 0:01:46.5]} 17... Rd8 {[%clk
0:02:36.6]} 18. Rxd8+ {[%clk 0:01:45.9]} 18... Nxd8 {[%clk 0:02:36]} 19. Qh5
{[%clk 0:01:44.7]} 19... h6 {[%clk 0:02:28.3]} 20. Qg6 {[%clk 0:01:33.4]} 20...
Qe7 {[%clk 0:02:23.4]} 21. a5 {[%clk 0:01:26.7]} 21... a6 {[%clk 0:02:22.2]} 22.
Bd2 {[%clk 0:01:21.8]} 22... Ne6 {[%clk 0:02:19.8]} 23. Be3 {[%clk 0:01:18.5]}
23... Kc8 {[%clk 0:02:17.3]} 24. Qh7 {[%clk 0:01:16.4]} 24... Qf8 {[%clk
0:02:10.5]} 25. c3 {[%clk 0:01:13]} 25... Kd7 {[%clk 0:02:05.4]} 26. b4 {[%clk
0:01:12.6]} 26... c6 {[%clk 0:02:03.8]} 27. h4 {[%clk 0:01:07.6]} 27... Qe7
{[%clk 0:01:57.9]} 28. g3 {[%clk 0:01:06.1]} 28... Nf8 {[%clk 0:01:49.3]} 29.
Qg8 {[%clk 0:01:04.1]} 29... Ne6 {[%clk 0:01:40.7]} 30. Qb8 {[%clk 0:01:03.1]}
30... Nd8 {[%clk 0:01:39.4]} 31. Bb6 {[%clk 0:00:56]} 31... Ke8 {[%clk
0:01:28.7]} 32. Bxd8 {[%clk 0:00:50]} 32... Qxd8 {[%clk 0:01:28.6]} 33. Qxb7
{[%clk 0:00:50.7]} 33... Qd1+ {[%clk 0:01:26.4]} 34. Kg2 {[%clk 0:00:50.8]}
34... Qd3 {[%clk 0:01:20.7]} 35. Qxc6+ {[%clk 0:00:50.7]} 35... Kf8 {[%clk
0:01:20.5]} 36. b5 {[%clk 0:00:50.7]} 36... axb5 {[%clk 0:01:17.6]} 37. a6
{[%clk 0:00:51.2]} 1-0

[Event "Early-Titled-Tuesday-Blitz-September-26-2023"]
[Site "Chess.com"]
[Date "2023.09.26"]
[Round "5"]
[White "InitiatingASC"]
[Black "azikom"]
[Result "0-1"]
[WhiteElo "2340"]
[BlackElo "2631"]
[TimeControl "180+1"]
[EndTime "8:56:47 PDT"]
[Termination "azikom won by resignation"]

1. d4 {[%clk 0:03:00.8]} 1... d5 {[%clk 0:02:59.5]} 2. c4 {[%clk 0:02:59.8]}
2... e6 {[%clk 0:02:59.6]} 3. Nc3 {[%clk 0:02:58]} 3... c6 {[%clk 0:03:00]} 4.
Nf3 {[%clk 0:02:57.4]} 4... dxc4 {[%clk 0:02:59.5]} 5. e3 {[%clk 0:02:57.1]}
5... b5 {[%clk 0:02:59.4]} 6. a4 {[%clk 0:02:57.2]} 6... Bb4 {[%clk 0:02:59.7]}
7. Bd2 {[%clk 0:02:47.3]} 7... Bb7 {[%clk 0:02:58.1]} 8. axb5 {[%clk 0:02:47.5]}
8... Bxc3 {[%clk 0:02:57.8]} 9. Bxc3 {[%clk 0:02:46.4]} 9... cxb5 {[%clk
0:02:57.8]} 10. b3 {[%clk 0:02:47.1]} 10... a5 {[%clk 0:02:53.9]} 11. bxc4
{[%clk 0:02:46.6]} 11... b4 {[%clk 0:02:54.2]} 12. Bb2 {[%clk 0:02:43.1]} 12...
Nf6 {[%clk 0:02:54.4]} 13. Bd3 {[%clk 0:02:40.6]} 13... O-O {[%clk 0:02:50.5]}
14. O-O {[%clk 0:02:37.8]} 14... Nbd7 {[%clk 0:02:41.9]} 15. Qc2 {[%clk
0:02:21.6]} 15... Qc7 {[%clk 0:02:36.6]} 16. Nd2 {[%clk 0:02:13.2]} 16... Ng4
{[%clk 0:02:24]} 17. Bxh7+ {[%clk 0:02:00.3]} 17... Kh8 {[%clk 0:02:23.4]} 18.
g3 {[%clk 0:02:00.8]} 18... f5 {[%clk 0:02:23]} 19. Bg6 {[%clk 0:01:59.5]} 19...
Rf6 {[%clk 0:02:22.4]} 20. Bh5 {[%clk 0:01:59.8]} 20... Nxh2 {[%clk 0:02:21.8]}
21. d5 {[%clk 0:01:44.9]} 21... Rh6 {[%clk 0:02:19.8]} 22. Qd1 {[%clk
0:01:27.9]} 22... Nc5 {[%clk 0:01:59.7]} 23. Kxh2 {[%clk 0:01:21.9]} 23... Qf7
{[%clk 0:01:57.7]} 24. Bd4 {[%clk 0:01:06.9]} 24... Rxh5+ {[%clk 0:01:48.5]} 25.
Kg2 {[%clk 0:01:06.7]} 25... Nd3 {[%clk 0:01:44.6]} 26. Qxh5+ {[%clk 0:00:39.1]}
26... Qxh5 {[%clk 0:01:43.8]} 27. Rh1 {[%clk 0:00:39.7]} 27... Qxh1+ {[%clk
0:01:39.8]} 28. Rxh1+ {[%clk 0:00:39.2]} 28... Kg8 {[%clk 0:01:40.4]} 29. Ra1
{[%clk 0:00:31.3]} 29... exd5 {[%clk 0:01:31.1]} 30. c5 {[%clk 0:00:31.7]} 30...
a4 {[%clk 0:01:28.9]} 31. Kf1 {[%clk 0:00:28.2]} 31... b3 {[%clk 0:01:27.7]} 32.
Ke2 {[%clk 0:00:28.2]} 32... Nb4 {[%clk 0:01:28]} 33. Ra3 {[%clk 0:00:21.7]}
33... Nc2 {[%clk 0:01:24.2]} 0-1

[Event "Early-Titled-Tuesday-Blitz-September-26-2023"]
[Site "Chess.com"]
[Date "2023.09.26"]
[Round "5"]
[White "emeli_chess"]
[Black "LUISMIGUELOV"]
[Result "0-1"]
[WhiteElo "2345"]
[BlackElo "2147"]
[TimeControl "180+1"]
[EndTime "8:56:47 PDT"]
[Termination "LUISMIGUELOV won by resignation"]

1. d4 {[%clk 0:03:00.9]} 1... d5 {[%clk 0:02:54.1]} 2. c4 {[%clk 0:03:00.4]}
2... c6 {[%clk 0:02:53.5]} 3. Nc3 {[%clk 0:03:00.1]} 3... Nf6 {[%clk 0:02:53.3]}
4. e3 {[%clk 0:03:00.1]} 4... g6 {[%clk 0:02:49.9]} 5. Nf3 {[%clk 0:02:59.4]}
5... Bg7 {[%clk 0:02:50.3]} 6. Be2 {[%clk 0:02:59.4]} 6... O-O {[%clk
0:02:49.8]} 7. O-O {[%clk 0:02:59.6]} 7... Bg4 {[%clk 0:02:44.6]} 8. cxd5 {[%clk
0:02:55.3]} 8... Nxd5 {[%clk 0:02:40.9]} 9. h3 {[%clk 0:02:52.3]} 9... Bxf3
{[%clk 0:02:39.9]} 10. Bxf3 {[%clk 0:02:52.1]} 10... e6 {[%clk 0:02:30.4]} 11.
Ne4 {[%clk 0:02:27.3]} 11... Nd7 {[%clk 0:02:24]} 12. Bd2 {[%clk 0:02:26]} 12...
N7f6 {[%clk 0:02:22.9]} 13. Rc1 {[%clk 0:02:19.3]} 13... Nxe4 {[%clk 0:02:21.6]}
14. Bxe4 {[%clk 0:02:19.3]} 14... Qd7 {[%clk 0:02:19.7]} 15. Qb3 {[%clk
0:02:08.8]} 15... f5 {[%clk 0:02:18]} 16. Bf3 {[%clk 0:02:06.1]} 16... h5 {[%clk
0:02:16.7]} 17. e4 {[%clk 0:01:43]} 17... fxe4 {[%clk 0:02:09.1]} 18. Bxe4
{[%clk 0:01:43]} 18... Kh7 {[%clk 0:02:03.2]} 19. Qd3 {[%clk 0:01:32.4]} 19...
Qf7 {[%clk 0:01:58.7]} 20. Bg5 {[%clk 0:01:01.7]} 20... Rae8 {[%clk 0:01:52.8]}
21. Rcd1 {[%clk 0:00:53.1]} 21... Bh6 {[%clk 0:01:38.1]} 22. Bxh6 {[%clk
0:00:51.3]} 22... Kxh6 {[%clk 0:01:38.1]} 23. g3 {[%clk 0:00:45.4]} 23... Qf6
{[%clk 0:01:33.8]} 24. f4 {[%clk 0:00:42.5]} 24... Ne7 {[%clk 0:01:30]} 25. h4
{[%clk 0:00:40.6]} 25... Nf5 {[%clk 0:01:28.9]} 26. Bxf5 {[%clk 0:00:40.5]}
26... exf5 {[%clk 0:01:27.3]} 27. Rfe1 {[%clk 0:00:39.3]} 27... Rxe1+ {[%clk
0:01:24.5]} 28. Rxe1 {[%clk 0:00:39]} 28... Rd8 {[%clk 0:01:24]} 29. Re5 {[%clk
0:00:38.7]} 29... Qd6 {[%clk 0:01:20.9]} 30. Kf2 {[%clk 0:00:28.8]} 30... Qxd4+
{[%clk 0:01:18.6]} 31. Qxd4 {[%clk 0:00:28.7]} 31... Rxd4 {[%clk 0:01:17.9]} 32.
Ke3 {[%clk 0:00:26.9]} 32... Rd1 {[%clk 0:01:13.2]} 33. Re7 {[%clk 0:00:26.2]}
33... Re1+ {[%clk 0:01:12.7]} 0-1

[Event "Early-Titled-Tuesday-Blitz-September-26-2023"]
[Site "Chess.com"]
[Date "2023.09.26"]
[Round "5"]
[White "DTChess"]
[Black "GMaka"]
[Result "1-0"]
[WhiteElo "2596"]
[BlackElo "2406"]
[TimeControl "180+1"]
[EndTime "8:56:56 PDT"]
[Termination "DTChess won by resignation"]

1. e4 {[%clk 0:03:00.9]} 1... c6 {[%clk 0:02:53.9]} 2. d4 {[%clk 0:03:00.9]}
2... d5 {[%clk 0:02:54.8]} 3. Nc3 {[%clk 0:03:01.4]} 3... dxe4 {[%clk
0:02:54.5]} 4. Nxe4 {[%clk 0:03:01.6]} 4... Bf5 {[%clk 0:02:55.1]} 5. Ng3 {[%clk
0:03:01.9]} 5... Bg6 {[%clk 0:02:55.4]} 6. Nf3 {[%clk 0:03:02.4]} 6... Nd7
{[%clk 0:02:55.5]} 7. Bc4 {[%clk 0:03:02]} 7... e6 {[%clk 0:02:55.7]} 8. Bb3
{[%clk 0:03:02.4]} 8... Ngf6 {[%clk 0:02:54.9]} 9. c3 {[%clk 0:03:02.4]} 9...
Bd6 {[%clk 0:02:55.5]} 10. Qe2 {[%clk 0:03:01.8]} 10... O-O {[%clk 0:02:54.9]}
11. Nh4 {[%clk 0:03:02.1]} 11... c5 {[%clk 0:02:50.7]} 12. Nxg6 {[%clk
0:03:02.2]} 12... hxg6 {[%clk 0:02:51.2]} 13. Be3 {[%clk 0:03:01.5]} 13... cxd4
{[%clk 0:02:48.3]} 14. Bxd4 {[%clk 0:03:01.7]} 14... Bc5 {[%clk 0:02:46.9]} 15.
Rd1 {[%clk 0:02:59.4]} 15... Qb6 {[%clk 0:02:43.9]} 16. h4 {[%clk 0:02:51.5]}
16... e5 {[%clk 0:02:34.8]} 17. Bxc5 {[%clk 0:02:45]} 17... Nxc5 {[%clk
0:02:35.7]} 18. h5 {[%clk 0:02:43.6]} 18... Nxb3 {[%clk 0:02:33.6]} 19. axb3
{[%clk 0:02:42.9]} 19... g5 {[%clk 0:02:05.1]} 20. b4 {[%clk 0:02:31.3]} 20...
Rad8 {[%clk 0:01:54.5]} 21. O-O {[%clk 0:02:31.2]} 21... Qe6 {[%clk 0:01:51.1]}
22. Qe3 {[%clk 0:02:28.1]} 22... Rxd1 {[%clk 0:01:46.2]} 23. Rxd1 {[%clk
0:02:26.4]} 23... Qg4 {[%clk 0:01:42.3]} 24. Rd6 {[%clk 0:01:45.6]} 24... Nxh5
{[%clk 0:01:29.8]} 25. Nxh5 {[%clk 0:01:45.5]} 25... Qxh5 {[%clk 0:01:30.7]} 26.
Qxe5 {[%clk 0:01:45.3]} 26... Qh7 {[%clk 0:01:18.9]} 27. Qe1 {[%clk 0:01:21.3]}
27... Qf5 {[%clk 0:01:09.9]} 28. Rd4 {[%clk 0:01:15.4]} 28... f6 {[%clk
0:00:44.4]} 29. f3 {[%clk 0:01:12]} 29... Kf7 {[%clk 0:00:41.3]} 30. Re4 {[%clk
0:01:06.5]} 30... Rd8 {[%clk 0:00:38.7]} 31. Qe2 {[%clk 0:01:00.3]} 31... Kg6
{[%clk 0:00:35.3]} 32. g4 {[%clk 0:00:58.3]} 32... Qd5 {[%clk 0:00:35.1]} 33.
Rd4 {[%clk 0:00:58]} 33... Qg8 {[%clk 0:00:32.9]} 34. Qd3+ {[%clk 0:00:57.8]}
1-0

[Event "Early-Titled-Tuesday-Blitz-September-26-2023"]
[Site "Chess.com"]
[Date "2023.09.26"]
[Round "5"]
[White "Barmen_EV"]
[Black "jk13"]
[Result "0-1"]
[WhiteElo "2447"]
[BlackElo "2617"]
[TimeControl "180+1"]
[EndTime "8:57:05 PDT"]
[Termination "jk13 won by resignation"]

1. e4 {[%clk 0:03:00.9]} 1... e5 {[%clk 0:02:58]} 2. Nf3 {[%clk 0:02:58.8]} 2...
Nc6 {[%clk 0:02:58.6]} 3. d4 {[%clk 0:02:58.9]} 3... exd4 {[%clk 0:02:58.5]} 4.
Bc4 {[%clk 0:02:59.4]} 4... Nf6 {[%clk 0:02:58.3]} 5. O-O {[%clk 0:02:59.8]}
5... d6 {[%clk 0:02:58.2]} 6. Nxd4 {[%clk 0:02:59.7]} 6... Be7 {[%clk
0:02:58.9]} 7. Nc3 {[%clk 0:02:59.8]} 7... O-O {[%clk 0:02:58.9]} 8. Bf4 {[%clk
0:02:58.6]} 8... Bd7 {[%clk 0:02:51.3]} 9. Re1 {[%clk 0:02:57.8]} 9... Re8
{[%clk 0:02:49.1]} 10. Nd5 {[%clk 0:02:49.8]} 10... Nxd5 {[%clk 0:02:42.6]} 11.
Bxd5 {[%clk 0:02:47.6]} 11... Bf6 {[%clk 0:02:28.1]} 12. c3 {[%clk 0:02:42.1]}
12... Rb8 {[%clk 0:02:15.9]} 13. Qd2 {[%clk 0:01:58.2]} 13... h6 {[%clk
0:02:05.2]} 14. Rad1 {[%clk 0:01:48.6]} 14... Ne5 {[%clk 0:02:05.2]} 15. Bxh6
{[%clk 0:01:20.1]} 15... gxh6 {[%clk 0:02:00.7]} 16. f4 {[%clk 0:01:20.4]} 16...
Ng6 {[%clk 0:01:41.5]} 17. f5 {[%clk 0:01:20.2]} 17... Bg5 {[%clk 0:01:34.1]}
18. Qf2 {[%clk 0:00:50.6]} 18... Ne5 {[%clk 0:01:33.8]} 19. g3 {[%clk
0:00:44.3]} 19... Kh7 {[%clk 0:01:21.4]} 20. Rf1 {[%clk 0:00:36.9]} 20... Rg8
{[%clk 0:01:13.7]} 21. f6 {[%clk 0:00:30.9]} 21... Rg6 {[%clk 0:01:03.2]} 22.
Nf5 {[%clk 0:00:24.9]} 22... Qxf6 {[%clk 0:00:55.8]} 23. h4 {[%clk 0:00:22.5]}
23... Bxh4 {[%clk 0:00:48.7]} 24. Nxh4 {[%clk 0:00:22.6]} 24... Qxh4 {[%clk
0:00:48.6]} 25. Kg2 {[%clk 0:00:11.6]} 25... Qh3+ {[%clk 0:00:48.2]} 26. Kg1
{[%clk 0:00:11.4]} 26... Rxg3+ {[%clk 0:00:49]} 27. Qxg3 {[%clk 0:00:12.3]}
27... Qxg3+ {[%clk 0:00:49.4]} 0-1

[Event "Early-Titled-Tuesday-Blitz-September-26-2023"]
[Site "Chess.com"]
[Date "2023.09.26"]
[Round "5"]
[White "Zampronha1971"]
[Black "Gyulamiryan-koryun"]
[Result "1-0"]
[WhiteElo "2265"]
[BlackElo "1981"]
[TimeControl "180+1"]
[EndTime "8:57:07 PDT"]
[Termination "Zampronha1971 won by resignation"]

1. e4 {[%clk 0:03:00.9]} 1... e5 {[%clk 0:02:59.1]} 2. Nf3 {[%clk 0:03:00.6]}
2... Nc6 {[%clk 0:02:59]} 3. d4 {[%clk 0:03:01.5]} 3... exd4 {[%clk 0:02:58.5]}
4. Nxd4 {[%clk 0:03:02.4]} 4... Bc5 {[%clk 0:02:58.3]} 5. Be3 {[%clk 0:03:01.6]}
5... Qf6 {[%clk 0:02:58]} 6. c3 {[%clk 0:03:02.2]} 6... Nge7 {[%clk 0:02:56.1]}
7. Bc4 {[%clk 0:03:02.6]} 7... Ne5 {[%clk 0:02:55.2]} 8. Be2 {[%clk 0:03:02.3]}
8... Qg6 {[%clk 0:02:55]} 9. O-O {[%clk 0:03:02.2]} 9... Bb6 {[%clk 0:02:54.9]}
10. Nd2 {[%clk 0:02:49.9]} 10... O-O {[%clk 0:02:53.8]} 11. f4 {[%clk
0:02:49.5]} 11... N5c6 {[%clk 0:02:49.4]} 12. f5 {[%clk 0:02:43.5]} 12... Qf6
{[%clk 0:02:48.9]} 13. N2f3 {[%clk 0:02:33.2]} 13... Qd6 {[%clk 0:02:32.4]} 14.
Kh1 {[%clk 0:02:28.5]} 14... Ne5 {[%clk 0:02:21.2]} 15. Bf4 {[%clk 0:02:16.2]}
15... f6 {[%clk 0:02:20.2]} 16. Nb5 {[%clk 0:02:00.2]} 16... Qc5 {[%clk
0:02:15.4]} 17. b4 {[%clk 0:01:51.5]} 17... Qc6 {[%clk 0:02:06.2]} 18. Nxe5
{[%clk 0:01:40.3]} 18... fxe5 {[%clk 0:02:04.2]} 19. Bxe5 {[%clk 0:01:37.9]}
19... d6 {[%clk 0:02:03.3]} 20. f6 {[%clk 0:01:30.4]} 20... Ng6 {[%clk
0:01:43.6]} 21. Qb3+ {[%clk 0:01:16.7]} 21... d5 {[%clk 0:01:25.9]} 22. exd5
{[%clk 0:01:07.7]} 22... Qd7 {[%clk 0:01:19]} 23. d6+ {[%clk 0:01:02.4]} 23...
Qe6 {[%clk 0:01:16.5]} 24. Bc4 {[%clk 0:01:01.9]} 24... Re8 {[%clk 0:01:06.7]}
25. Bd4 {[%clk 0:00:53.7]} 25... gxf6 {[%clk 0:01:01.1]} 26. Bxb6 {[%clk
0:00:49.8]} 26... axb6 {[%clk 0:00:39.7]} 27. Nxc7 {[%clk 0:00:49.6]} 27... Bd7
{[%clk 0:00:39.6]} 28. Nxa8 {[%clk 0:00:45.3]} 28... Rxa8 {[%clk 0:00:34]} 29.
Bxe6+ {[%clk 0:00:45.1]} 29... Bxe6 {[%clk 0:00:33.4]} 30. Qxe6+ {[%clk
0:00:46]} 30... Kg7 {[%clk 0:00:33.3]} 31. Qxf6+ {[%clk 0:00:46.6]} 1-0

[Event "Early-Titled-Tuesday-Blitz-September-26-2023"]
[Site "Chess.com"]
[Date "2023.09.26"]
[Round "5"]
[White "Flawless_Fighter"]
[Black "xxysoul6"]
[Result "1-0"]
[WhiteElo "2849"]
[BlackElo "3016"]
[TimeControl "180+1"]
[EndTime "8:57:08 PDT"]
[Termination "Flawless_Fighter won by resignation"]

1. e4 {[%clk 0:03:00.9]} 1... c6 {[%clk 0:02:59.2]} 2. d4 {[%clk 0:03:00.3]}
2... d5 {[%clk 0:02:59.8]} 3. exd5 {[%clk 0:03:01.2]} 3... cxd5 {[%clk 0:03:00]}
4. Bd3 {[%clk 0:03:01.8]} 4... Nc6 {[%clk 0:02:59.6]} 5. c3 {[%clk 0:03:02.4]}
5... g6 {[%clk 0:02:57.7]} 6. Nd2 {[%clk 0:03:01.5]} 6... Nf6 {[%clk 0:02:55.7]}
7. Ndf3 {[%clk 0:03:00.8]} 7... Bg7 {[%clk 0:02:53.7]} 8. Bf4 {[%clk 0:03:00.1]}
8... Nh5 {[%clk 0:02:52.1]} 9. Be3 {[%clk 0:02:59.4]} 9... O-O {[%clk
0:02:51.6]} 10. Ne2 {[%clk 0:02:56.4]} 10... Bg4 {[%clk 0:02:50]} 11. Ng3 {[%clk
0:02:54.2]} 11... e5 {[%clk 0:02:43.5]} 12. dxe5 {[%clk 0:02:46.3]} 12... Nxe5
{[%clk 0:02:44.4]} 13. Be2 {[%clk 0:02:46.2]} 13... Bxf3 {[%clk 0:02:29.2]} 14.
Bxf3 {[%clk 0:02:45.9]} 14... Nxg3 {[%clk 0:02:29.7]} 15. hxg3 {[%clk
0:02:45.2]} 15... Nc4 {[%clk 0:02:30.3]} 16. Qxd5 {[%clk 0:02:17.9]} 16... Nxb2
{[%clk 0:02:18.3]} 17. O-O {[%clk 0:02:12.9]} 17... Na4 {[%clk 0:02:01.7]} 18.
Qxd8 {[%clk 0:01:50.8]} 18... Raxd8 {[%clk 0:02:00.8]} 19. Bxb7 {[%clk
0:01:50.1]} 19... Nxc3 {[%clk 0:01:58.7]} 20. Bf3 {[%clk 0:01:35.4]} 20... a6
{[%clk 0:01:34.5]} 21. a4 {[%clk 0:01:30.2]} 21... Rfe8 {[%clk 0:01:10.9]} 22.
Ra3 {[%clk 0:01:04.3]} 22... h5 {[%clk 0:00:40.8]} 23. a5 {[%clk 0:01:02.6]}
23... Nd5 {[%clk 0:00:36.2]} 24. Bb6 {[%clk 0:00:57.8]} 24... Rd7 {[%clk
0:00:30]} 25. Rb3 {[%clk 0:00:53.6]} 25... Nc3 {[%clk 0:00:25.7]} 26. Bc6 {[%clk
0:00:49.9]} 26... Rd3 {[%clk 0:00:25.7]} 27. Rxc3 {[%clk 0:00:40.8]} 1-0

[Event "Early-Titled-Tuesday-Blitz-September-26-2023"]
[Site "Chess.com"]
[Date "2023.09.26"]
[Round "5"]
[White "chesslh19"]
[Black "koncheto"]
[Result "0-1"]
[WhiteElo "2330"]
[BlackElo "2557"]
[TimeControl "180+1"]
[EndTime "8:57:09 PDT"]
[Termination "koncheto won on time"]

1. e4 {[%clk 0:02:41.7]} 1... e5 {[%clk 0:02:53.7]} 2. Nf3 {[%clk 0:02:40.8]}
2... Nf6 {[%clk 0:02:52.8]} 3. Nxe5 {[%clk 0:02:41]} 3... Nc6 {[%clk 0:02:53]}
4. Nxc6 {[%clk 0:02:40.5]} 4... dxc6 {[%clk 0:02:53.9]} 5. e5 {[%clk 0:02:40.8]}
5... Nd5 {[%clk 0:02:49.9]} 6. d4 {[%clk 0:02:40.6]} 6... Be7 {[%clk 0:02:44.4]}
7. Bd3 {[%clk 0:02:36.3]} 7... Be6 {[%clk 0:02:37.5]} 8. O-O {[%clk 0:02:34.5]}
8... Qd7 {[%clk 0:02:35.6]} 9. Nc3 {[%clk 0:01:54.4]} 9... Nb6 {[%clk
0:02:28.4]} 10. Be3 {[%clk 0:01:37.9]} 10... O-O-O {[%clk 0:02:27.3]} 11. Qe2
{[%clk 0:01:32.6]} 11... g5 {[%clk 0:02:21.2]} 12. Ne4 {[%clk 0:01:22.5]} 12...
Rdg8 {[%clk 0:02:06.1]} 13. Rad1 {[%clk 0:01:10.4]} 13... h5 {[%clk 0:02:04.6]}
14. c4 {[%clk 0:00:53.5]} 14... g4 {[%clk 0:02:00.4]} 15. Nc5 {[%clk 0:00:51.1]}
15... Qe8 {[%clk 0:01:55.1]} 16. Qc2 {[%clk 0:00:20.9]} 16... Kb8 {[%clk
0:01:44.7]} 17. Bf5 {[%clk 0:00:19.7]} 17... Bxc4 {[%clk 0:01:43.5]} 18. Rfe1
{[%clk 0:00:15.2]} 18... h4 {[%clk 0:01:42.7]} 19. b3 {[%clk 0:00:15]} 19... Bd5
{[%clk 0:01:42.7]} 20. a4 {[%clk 0:00:12.7]} 20... Bg5 {[%clk 0:01:34.2]} 21. a5
{[%clk 0:00:11]} 21... Nc8 {[%clk 0:01:34]} 22. Nd7+ {[%clk 0:00:09.6]} 22...
Ka8 {[%clk 0:01:34.2]} 23. Nf6 {[%clk 0:00:06.4]} 23... Bxf6 {[%clk 0:01:32.6]}
24. exf6 {[%clk 0:00:07.3]} 24... Nd6 {[%clk 0:01:30.8]} 25. Bf4 {[%clk
0:00:06.3]} 25... Qd8 {[%clk 0:01:31.1]} 26. Be5 {[%clk 0:00:03.9]} 26... Nxf5
{[%clk 0:01:27.7]} 27. Qxf5 {[%clk 0:00:04.8]} 27... Bxb3 {[%clk 0:01:28.2]} 28.
Rb1 {[%clk 0:00:05]} 28... Bc4 {[%clk 0:01:24.2]} 29. Qf4 {[%clk 0:00:04.7]}
29... h3 {[%clk 0:01:19.2]} 30. Bxc7 {[%clk 0:00:03.5]} 30... Qd5 {[%clk
0:01:19.4]} 31. Qe4 {[%clk 0:00:01.5]} 31... Qxe4 {[%clk 0:01:19.6]} 32. Rxe4
{[%clk 0:00:01.7]} 32... Bd3 {[%clk 0:01:20.5]} 33. Re7 {[%clk 0:00:01.1]} 33...
Bxb1 {[%clk 0:01:20.1]} 0-1